[Event "Skalica Open 2019"]
[Site "Skalica"]
[Date "2019.08.31"]
[Round "9.12"]
[White "Kantorik, Marian"]
[Black "Khmelev, Mikhail"]
[Result "1-0"]
[ECO "A40"]
[WhiteElo "2164"]
[BlackElo "2021"]
[Annotator "NA"]
[PlyCount "75"]
[EventDate "2019.08.25"]
[EventType "swiss"]
[EventCountry "SVK"]
[SourceTitle "playchess.com"]
[Source "ChessBase"]
[SourceQuality "1"]
[TimeControl "40/5400+30:1800+30"]

1. d4 {[%emt 0:09:39]} Nf6 {[%emt 0:00:00]} 2. c4 {[%emt 0:00:07]} e6 {[%emt 0:00:00]} 3. g3 {[%emt 0:00:22]} Bb4+ {[%emt 0:01:31]} 4. Nd2 {[%emt 0:00:17]} c5 {[%emt 0:00:19]} 5. Ngf3 {[%emt 0:02:05]} Nc6 {[%emt 0:00:06]} 6. dxc5 {[%emt 0:01:45]} Bxc5 {[%emt 0:00:05]} 7. e3 {[%emt 0:01:26]} O-O {[%emt 0:01:10]} 8. Bg2 {[%emt 0:00:16]} d5 {[%emt 0:04:48]} 9. O-O {[%emt 0:03:22]} Bb6 {[%emt 0:02:18]} 10. b3 {[%emt 0:02:27]} d4 {[%emt 0:00:08]} 11. exd4 {[%emt 0:00:23]} Nxd4 {[%emt 0:00:10]} 12. Bb2 {[%emt 0:00:28]} Nc6 {[%emt 0:03:36]} 13. Qe2 {[%emt 0:05:46]} Qe7 {[%emt 0:00:17]} 14. Rad1 {[%emt 0:02:03]} Re8 {[%emt 0:00:42]} 15. Ne5 {[%emt 0:04:21]} Nxe5 {[%emt 0:00:19]} 16. Bxe5 {[%emt 0:01:38]} Bc7 {[%emt 0:00:16]} 17. Bb2 {[%emt 0:06:41]} e5 {[%emt 0:00:38]} 18. h3 $14 {[%emt 0:01:19]} Bd7 {[%emt 0:01:03]} 19. Bxb7 {[%emt 0:01:33]} Bxh3 {[%emt 0:00:05]} 20. Rfe1 {[%emt 0:00:48]} Bg4 {[%emt 0:00:12]} 21. Bf3 {[%emt 0:01:05]} Bxf3 {[%emt 0:00:18]} 22. Qxf3 {[%emt 0:01:54]} Rad8 {[%emt 0:00:09]} 23. Ne4 {[%emt 0:02:19]} Bb6 {[%emt 0:00:18]} 24. Nxf6+ {[%emt 0:01:56]} Qxf6 {[%emt 0:00:05]} 25. Qxf6 {[%emt 0:00:29]} gxf6 {[%emt 0:00:03]} 26. a3 {[%emt 0:00:32]} Rxd1 {[%emt 0:04:24]} 27. Rxd1 {[%emt 0:00:25]} e4 {[%emt 0:00:01]} 28. b4 {[%emt 0:06:04]} e3 {[%emt 0:01:40]} 29. c5 {[%emt 0:00:34]} e2 {[%emt 0:01:34]} 30. Re1 {[%emt 0:00:16]} Bd8 {[%emt 0:00:09]} 31. Kg2 {[%emt 0:01:37]} Kf8 {[%emt 0:00:18]} 32. Kf3 {[%emt 0:00:09]} Re6 {[%emt 0:00:06]} 33. Rxe2 {[%emt 0:00:12]} Rc6 {[%emt 0:00:02]} 34. Ke4 {[%emt 0:04:47]} Ke7 {[%emt 0:00:10]} 35. Kd5+ {[%emt 0:00:39]} Kd7 {[%emt 0:00:02]} 36. b5 {[%emt 0:00:24]} Rc8 {[%emt 0:00:17]} 37. Bc3 {[%emt 0:02:20]} a5 {[%emt 0:00:42]} 38. c6+ {[%emt 0:00:55]} 1-0

[Event "Skalica Open 2019"]
[Site "Skalica"]
[Date "2019.08.31"]
[Round "9.14"]
[White "Kuznetsov, Mikhail V."]
[Black "Kapusta, Petr"]
[Result "1-0"]
[ECO "E63"]
[WhiteElo "2261"]
[BlackElo "2157"]
[Annotator "ChessBase"]
[PlyCount "87"]
[EventDate "2019.08.25"]
[EventType "swiss"]
[EventCountry "SVK"]
[SourceTitle "playchess.com"]
[Source "ChessBase"]
[SourceQuality "1"]
[TimeControl "40/5400+30:1800+30"]

1. d4 {[%emt 0:21:46]} Nf6 {[%emt 0:00:00]} 2. Nf3 {[%emt 0:00:06]} g6 {[%emt 0:00:04]} 3. c4 {[%emt 0:00:11]} Bg7 {[%emt 0:00:08]} 4. g3 {[%emt 0:00:05]} O-O {[%emt 0:00:09]} 5. Bg2 {[%emt 0:00:04]} d6 {[%emt 0:00:05]} 6. O-O {[%emt 0:00:05]} Nc6 {[%emt 0:00:05]} 7. Nc3 {[%emt 0:00:12]} a6 {[%emt 0:00:08]} 8. b3 {[%emt 0:00:22]} Rb8 {[%emt 0:01:04]} 9. Bb2 {[%emt 0:00:11]} b5 {[%emt 0:00:54]} 10. cxb5 {[%emt 0:00:09]} axb5 {[%emt 0:00:11]} 11. d5 {[%emt 0:00:08]} Na5 {[%emt 0:07:23]} 12. Nd4 {[%emt 0:01:40]} b4 {[%emt 0:06:47]} 13. Ncb5 {[%emt 0:00:22]} Bd7 {[%emt 0:07:11]} 14. Na7 {[%emt 0:01:00]} Rb6 {[%emt 0:09:33]} 15. a3 {[%emt 0:04:46]} bxa3 {[%emt 0:02:46]} 16. Rxa3 {[%emt 0:00:10]} Nc4 {[%emt 0:00:49]} 17. bxc4 {[%emt 0:00:39]} Rxb2 {[%emt 0:00:07]} 18. Qc1 Rb6 {[%emt 0:01:52]} 19. c5 {[%emt 0:02:31]} dxc5 {[%emt 0:07:05]} 20. Qxc5 {[%emt 0:00:18]} Nxd5 {[%emt 0:03:08]} 21. Ndc6 {[%emt 0:15:22]} Bxc6 {[%emt 0:17:35]} 22. Nxc6 {[%emt 0:03:43]} Rxc6 {[%emt 0:00:24]} 23. Qxc6 {[%emt 0:00:04]} Nb4 {[%emt 0:00:07]} 24. Qc5 {[%emt 0:05:09]} Qd6 {[%emt 0:02:50]} 25. Ra5 {[%emt 0:01:38]} Qd2 {[%emt 0:02:54]} 26. Qxe7 {[%emt 0:02:51]} Nc6 {[%emt 0:00:29]} 27. Rd5 {[%emt 0:00:40]} Qxd5 {[%emt 0:06:46]} 28. Qxf8+ {[%emt 0:00:20]} Kxf8 {[%emt 0:00:06]} 29. Bxd5 {[%emt 0:00:05]} Nb4 {[%emt 0:02:04]} 30. Bb3 {[%emt 0:00:54]} Ke7 {[%emt 0:00:51]} 31. Kg2 {[%emt 0:02:08]} f5 {[%emt 0:01:12]} 32. Rd1 {[%emt 0:00:42]} Be5 {[%emt 0:00:47]} 33. Kf3 {[%emt 0:01:41]} c5 {[%emt 0:00:57]} 34. Ba4 {[%emt 0:01:53]} g5 {[%emt 0:03:46]} 35. g4 {[%emt 0:07:25]} f4 {[%emt 0:04:14]} 36. Rd7+ {[%emt 0:01:16]} Ke6 {[%emt 0:00:07]} 37. Rb7 {[%emt 0:00:11]} Bd6 {[%emt 0:00:42]} 38. Bb3+ {[%emt 0:01:14]} Ke5 {[%emt 0:00:15]} 39. Rxh7 {[%emt 0:00:58]} Nc6 {[%emt 0:00:30]} 40. e3 {[%emt 0:00:16]} fxe3 {[%emt 0:00:20]} 41. fxe3 {[%emt 0:30:41]} Na5 {[%emt 0:30:07]} 42. Bc2 {[%emt 0:00:32]} c4 {[%emt 0:00:56]} 43. Rg7 {[%emt 0:00:16]} Nc6 {[%emt 0:00:10]} 44. Rxg5+ {[%emt 0:00:20] Kd5 Ke4+} 1-0

[Event "Skalica Open 2019"]
[Site "Skalica"]
[Date "2019.08.31"]
[Round "9.15"]
[White "Londin, Simon"]
[Black "Bochnicka, Vladimir"]
[Result "1/2-1/2"]
[ECO "C42"]
[WhiteElo "2038"]
[BlackElo "2193"]
[Annotator "ChessBase"]
[PlyCount "52"]
[EventDate "2019.08.25"]
[EventType "swiss"]
[EventCountry "SVK"]
[SourceTitle "playchess.com"]
[Source "ChessBase"]
[SourceQuality "1"]
[TimeControl "40/5400+30:1800+30"]

1. e4 {[%emt 0:00:00]} e5 {[%emt 0:00:00]} 2. Nf3 {[%emt 0:00:00]} Nf6 {[%emt 0:00:00]} 3. Nxe5 {[%emt 0:00:00]} d6 {[%emt 0:00:00]} 4. Nf3 {[%emt 0:00:00]} Nxe4 {[%emt 0:00:00]} 5. Nc3 {[%emt 0:00:00]} Nf6 {[%emt 0:00:12]} 6. d4 {[%emt 0:00:17]} Be7 {[%emt 0:00:14]} 7. h3 {[%emt 0:10:12]} Nbd7 {[%emt 0:01:29]} 8. Bd3 {[%emt 0:01:34]} O-O {[%emt 0:01:53]} 9. O-O {[%emt 0:00:24]} Re8 {[%emt 0:00:08]} 10. Bg5 {[%emt 0:01:50]} Nf8 {[%emt 0:04:42]} 11. Qd2 {[%emt 0:02:09]} Ne6 {[%emt 0:03:21]} 12. Be3 {[%emt 0:00:15]} d5 {[%emt 0:00:50]} 13. Rad1 {[%emt 0:08:43]} c6 {[%emt 0:00:31]} 14. Ne5 {[%emt 0:02:38]} Bd6 {[%emt 0:07:19]} 15. f4 {[%emt 0:02:11]} Qc7 {[%emt 0:02:13]} 16. Qf2 {[%emt 0:04:06]} Nf8 {[%emt 0:02:48]} 17. Ne2 {[%emt 0:02:25]} Ne4 {[%emt 0:05:11]} 18. Qf3 {[%emt 0:04:58]} f6 {[%emt 0:09:18]} 19. Ng4 {[%emt 0:00:09]} Ng6 {[%emt 0:02:40]} 20. g3 {[%emt 0:07:02]} Ne7 {[%emt 0:03:59]} 21. Nf2 {[%emt 0:07:44]} f5 {[%emt 0:12:41]} 22. c3 {[%emt 0:01:42]} Kh8 {[%emt 0:00:57]} 23. Bb1 {[%emt 0:05:13]} Ng8 {[%emt 0:02:28]} 24. Nd3 {[%emt 0:00:23]} Ngf6 {[%emt 0:00:29]} 25. Ne5 {[%emt 0:00:06]} Be6 {[%emt 0:01:45]} 26. Kh1 {[%emt 0:03:52]} g6 {[%emt 0:07:03]} 1/2-1/2

[Event "Skalica Open 2019"]
[Site "Skalica"]
[Date "2019.08.31"]
[Round "9.16"]
[White "Sefcik, Marek"]
[Black "Jun, Rudolf Jr."]
[Result "0-1"]
[ECO "B30"]
[WhiteElo "2024"]
[BlackElo "2114"]
[Annotator "ChessBase"]
[PlyCount "52"]
[EventDate "2019.08.25"]
[EventType "swiss"]
[EventCountry "SVK"]
[SourceTitle "playchess.com"]
[Source "ChessBase"]
[SourceQuality "1"]
[TimeControl "40/5400+30:1800+30"]

1. e4 {[%emt 0:00:00]} c5 {[%emt 0:00:00]} 2. Nf3 {[%emt 0:00:00]} Nc6 {[%emt 0:00:00]} 3. b3 {[%emt 0:00:00]} d6 {[%emt 0:01:09]} 4. Bb2 {[%emt 0:00:10]} a6 {[%emt 0:00:51]} 5. c4 {[%emt 0:00:31]} e5 {[%emt 0:00:45]} 6. h3 {[%emt 0:00:26]} Be6 {[%emt 0:00:43]} 7. Nc3 {[%emt 0:00:39]} g6 {[%emt 0:01:01]} 8. g3 {[%emt 0:04:40]} Bg7 {[%emt 0:04:32]} 9. Bg2 {[%emt 0:00:53]} Nge7 {[%emt 0:00:52]} 10. d3 {[%emt 0:07:53]} Rb8 {[%emt 0:01:31]} 11. O-O {[%emt 0:07:13]} O-O {[%emt 0:01:17]} 12. Nd5 {[%emt 0:04:48]} h6 {[%emt 0:01:09]} 13. Nh2 {[%emt 0:15:16]} f5 {[%emt 0:00:58]} 14. f4 {[%emt 0:06:55]} b5 {[%emt 0:01:55]} 15. Nxe7+ {[%emt 0:12:05]} Nxe7 {[%emt 0:00:38]} 16. fxe5 {[%emt 0:07:25]} dxe5 {[%emt 0:02:25]} 17. Qe2 {[%emt 0:00:17]} fxe4 {[%emt 0:05:21]} 18. dxe4 {[%emt 0:02:55]} Nc6 {[%emt 0:04:18]} 19. Rxf8+ {[%emt 0:02:31]} Qxf8 {[%emt 0:00:09]} 20. cxb5 {[%emt 0:05:06]} axb5 {[%emt 0:01:47]} 21. Nf3 {[%emt 0:01:01]} Nd4 {[%emt 0:00:58]} 22. Qf2 {[%emt 0:02:13]} Qe7 {[%emt 0:01:35]} 23. Nxd4 {[%emt 0:04:07]} exd4 {[%emt 0:00:53]} 24. b4 {[%emt 0:01:22]} Rf8 {[%emt 0:02:13]} 25. Qd2 {[%emt 0:02:29]} c4 {[%emt 0:01:05]} 26. Bxd4 {[%emt 0:04:12]} Rd8 {[%emt 0:00:19]} 0-1

[Event "Skalica Open 2019"]
[Site "Skalica"]
[Date "2019.08.31"]
[Round "9.17"]
[White "Hrbek, Stepan"]
[Black "Gresova, Zuzana"]
[Result "1-0"]
[ECO "B52"]
[WhiteElo "2066"]
[BlackElo "2008"]
[Annotator "NA"]
[PlyCount "63"]
[EventDate "2019.08.25"]
[EventType "swiss"]
[EventCountry "SVK"]
[SourceTitle "playchess.com"]
[Source "ChessBase"]
[SourceQuality "1"]
[TimeControl "40/5400+30:1800+30"]

1. e4 {[%emt 0:00:00]} c5 {[%emt 0:00:00]} 2. Nf3 {[%emt 0:00:00]} d6 {[%emt 0:00:00]} 3. Bb5+ {[%emt 0:00:00]} Bd7 {[%emt 0:00:57]} 4. Bxd7+ {[%emt 0:00:14]} Qxd7 {[%emt 0:00:13]} 5. c4 {[%emt 0:00:09]} Nc6 {[%emt 0:00:53]} 6. d4 {[%emt 0:00:47]} cxd4 {[%emt 0:01:24]} 7. Nxd4 {[%emt 0:00:16]} g6 {[%emt 0:02:49]} 8. b3 {[%emt 0:00:33]} Bg7 {[%emt 0:02:52]} 9. Bb2 {[%emt 0:00:19]} Nf6 {[%emt 0:01:17]} 10. Nc3 {[%emt 0:00:39]} O-O {[%emt 0:01:33]} 11. O-O {[%emt 0:00:09]} Nh5 {[%emt 0:11:33] B52: Sicilian: Moscow Variation with 3...Bd7} (11... Rac8 12. Re1 Rfd8 13. Nd5 Ne8 14. Qd2 e6 15. Ne3 Nf6 16. Qc2 d5 17. e5 Nh5 18. Rad1 Qe7 19. g3 Rb8 20. Bc3 Qa3 21. Rd3 a5 22. Red1 Qc5 23. Qd2 Rdc8 {½-½ (23) Yu,Y (2725)-Lu,S (2607) Shenzhen 2016}) 12. Nxc6 {[%emt 0:38:56]} Qxc6 $146 {[%emt 0:08:24]} ({Predecessor:} 12... bxc6 13. Qd2 Qc7 14. f4 Rad8 15. Rad1 Nf6 16. Rf3 Nd7 17. Kh1 Rfe8 18. Rh3 Qa5 19. Rf1 d5 20. cxd5 cxd5 21. exd5 Nc5 22. f5 e6 23. fxe6 fxe6 24. d6 Qa6 25. Rhf3 Qxd6 26. Qxd6 {½-½ (26) Roy Laguens,A (2338)-Kyhos,A (2281) ICCF email 2016}) 13. Nd5 {[%emt 0:01:14]} Rae8 {[%emt 0:04:50]} 14. Bxg7 {[%emt 0:03:54]} Kxg7 {[%emt 0:07:11]} 15. Qd4+ {[%emt 0:06:30]} Kg8 {[%emt 0:05:04]} 16. Rad1 {[%emt 0:12:13]} Qc5 {[%emt 0:06:53]} 17. Rd3 {[%emt 0:07:14]} Qxd4 {[%emt 0:05:05]} 18. Rxd4 {[%emt 0:00:09]} f5 {[%emt 0:01:28]} (18... Ng7 $14) 19. exf5 {[%emt 0:06:57]} Rxf5 {[%emt 0:02:02]} 20. g4 {[%emt 0:04:04]} e5 {[%emt 0:05:31]} 21. Re4 {[%emt 0:11:49]} ({Less strong is} 21. gxf5 exd4 22. Rd1 Re4 $14) 21... Nf6 {[%emt 0:04:53]} 22. gxf5 {[%emt 0:00:12]} Nxe4 {[%emt 0:00:41]} 23. f3 {[%emt 0:00:03]} Nd2 {[%emt 0:04:04]} 24. Rf2 {[%emt 0:00:30]} Nb1 {[%emt 0:02:59]} 25. Nf6+ {[%emt 0:01:09]} Kf7 {[%emt 0:00:09]} 26. Nxe8 {[%emt 0:00:02]} Kxe8 {[%emt 0:00:09]} 27. fxg6 {[%emt 0:00:02]} hxg6 {[%emt 0:00:13]} 28. Rc2 {[%emt 0:01:51]} Na3 {[%emt 0:00:45]} 29. Rc1 {[%emt 0:00:18]} b6 {[%emt 0:00:41]} 30. Kf2 {[%emt 0:00:29]} Ke7 $18 {[%emt 0:00:25]} 31. Ke3 {[%emt 0:00:58]} Ke6 {[%emt 0:00:33]} 32. Ke4 {Kd5+} 1-0

[Event "Skalica Open 2019"]
[Site "Skalica"]
[Date "2019.08.31"]
[Round "9.18"]
[White "Kuna, Martin"]
[Black "Chan, Naruna"]
[Result "1/2-1/2"]
[ECO "B32"]
[WhiteElo "1969"]
[BlackElo "1950"]
[Annotator "NA"]
[PlyCount "53"]
[EventDate "2019.08.25"]
[EventType "swiss"]
[EventCountry "SVK"]
[SourceTitle "playchess.com"]
[Source "ChessBase"]
[SourceQuality "1"]
[TimeControl "40/5400+30:1800+30"]

1. e4 {[%emt 0:00:00]} c5 {[%emt 0:00:00]} 2. Nf3 {[%emt 0:00:00]} Nc6 {[%emt 0:00:00]} 3. d4 {[%emt 0:00:08]} cxd4 {[%emt 0:00:00]} 4. Nxd4 e5 $14 {[%emt 0:00:00]} 5. Nb5 {[%emt 0:00:37]} d6 6. c4 {[%emt 0:00:29]} Be7 {[%emt 0:00:26]} 7. N1c3 {[%emt 0:00:50]} a6 {[%emt 0:00:09]} 8. Na3 {[%emt 0:00:07]} Be6 {[%emt 0:01:45]} 9. Nc2 {[%emt 0:01:44]} Bg5 {[%emt 0:05:17]} 10. Bd3 Bxc1 {[%emt 0:02:55]} 11. Rxc1 {[%emt 0:01:45]} Nf6 12. O-O {[%emt 0:00:58]} O-O {[%emt 0:01:07]} 13. Nd5 Rc8 {[%emt 0:15:48]} 14. Nce3 {[%emt 0:06:41]} Nd4 {[%emt 0:10:19]} 15. Qd2 {[%emt 0:04:57]} Nh5 {[%emt 0:17:54]} 16. Nc2 {[%emt 0:08:05]} Nxc2 {[%emt 0:00:32]} 17. Rxc2 {[%emt 0:00:07]} Bxd5 {[%emt 0:00:22]} 18. exd5 {[%emt 0:00:07]} f5 {[%emt 0:00:54]} 19. b4 {[%emt 0:08:29]} Nf4 {[%emt 0:03:32]} 20. g3 {[%emt 0:05:18]} Ng6 {[%emt 0:06:30]} 21. Rfc1 {[%emt 0:06:47]} Kh8 {[%emt 0:02:44]} 22. c5 {[%emt 0:02:02]} dxc5 {[%emt 0:01:20]} 23. Rxc5 {[%emt 0:00:05]} Rxc5 {[%emt 0:00:15]} 24. Rxc5 {[%emt 0:00:07]} b6 {[%emt 0:00:10]} 25. Rc2 {[%emt 0:00:25]} Qxd5 {[%emt 0:01:50]} 26. Bxa6 {[%emt 0:00:09]} Qa8 {[%emt 0:00:11]} 27. Be2 {[%emt 0:04:58]} 1/2-1/2

[Event "Skalica Open 2019"]
[Site "Skalica"]
[Date "2019.08.31"]
[Round "9.19"]
[White "Lhotska, Anna"]
[Black "Kovarikova, Maria"]
[Result "1-0"]
[ECO "A16"]
[WhiteElo "1966"]
[BlackElo "1854"]
[Annotator "NA"]
[PlyCount "53"]
[EventDate "2019.08.25"]
[EventType "swiss"]
[EventCountry "SVK"]
[SourceTitle "playchess.com"]
[Source "ChessBase"]
[SourceQuality "1"]
[TimeControl "40/5400+30:1800+30"]

1. c4 Nf6 2. Nc3 {[%emt 0:00:56]} g6 {[%emt 0:00:05]} 3. g3 {[%emt 0:00:18]} Bg7 {[%emt 0:00:12]} 4. Bg2 {[%emt 0:00:06]} O-O {[%emt 0:00:21]} 5. e4 {[%emt 0:00:57]} d6 {[%emt 0:00:10]} 6. Nge2 {[%emt 0:00:49]} e5 {[%emt 0:03:52]} 7. d3 {[%emt 0:01:21]} c6 {[%emt 0:02:54]} 8. O-O {[%emt 0:02:02]} a5 {[%emt 0:04:01]} 9. h3 {[%emt 0:01:37]} Nbd7 {[%emt 0:02:07]} 10. f4 {[%emt 0:03:16]} Nb6 {[%emt 0:11:00]} 11. Be3 {[%emt 0:24:48]} Nfd7 {[%emt 0:09:14]} 12. f5 {[%emt 0:02:24]} Nf6 {[%emt 0:05:40]} 13. g4 {[%emt 0:06:13]} d5 {[%emt 0:05:03]} 14. g5 {[%emt 0:08:43]} d4 {[%emt 0:01:43]} 15. gxf6 {[%emt 0:00:38]} Bxf6 {[%emt 0:05:16]} 16. Bh6 {[%emt 0:00:34]} dxc3 {[%emt 0:00:15]} 17. Bxf8 {[%emt 0:00:32]} cxb2 {[%emt 0:00:16]} 18. Rb1 {[%emt 0:00:24]} Qxf8 {[%emt 0:01:19]} 19. Rxb2 {[%emt 0:00:37]} gxf5 {[%emt 0:01:41]} 20. Kh2 {[%emt 0:05:00]} Qc5 {[%emt 0:00:57]} 21. Ng3 {[%emt 0:04:44]} f4 {[%emt 0:00:39]} 22. Nh5 {[%emt 0:00:12]} Bh4 {[%emt 0:01:10]} 23. Bf3 {[%emt 0:00:43]} Be6 {[%emt 0:01:03]} 24. Bg4 {[%emt 0:02:27]} Kh8 {[%emt 0:01:39]} 25. Bxe6 {[%emt 0:00:26]} fxe6 {[%emt 0:00:04]} 26. Qg4 {[%emt 0:00:48]} Qe7 {[%emt 0:00:27]} 27. Rxb6 {[%emt 0:02:27]} 1-0

[Event "Skalica Open 2019"]
[Site "Skalica"]
[Date "2019.08.31"]
[Round "9.20"]
[White "Benes, Miroslav"]
[Black "Rakovsky, Jakub"]
[Result "1-0"]
[ECO "D51"]
[WhiteElo "2107"]
[BlackElo "1765"]
[Annotator "ChessBase"]
[PlyCount "49"]
[EventDate "2019.08.25"]
[EventType "swiss"]
[EventCountry "SVK"]
[SourceTitle "playchess.com"]
[Source "ChessBase"]
[SourceQuality "1"]
[TimeControl "40/5400+30:1800+30"]

1. d4 {[%emt 0:00:20]} d5 {[%emt 0:00:00]} 2. c4 {[%emt 0:00:24]} c6 {[%emt 0:00:00]} 3. Nc3 {[%emt 0:00:05]} Nf6 {[%emt 0:00:55]} 4. Bg5 {[%emt 0:00:08]} Nbd7 {[%emt 0:00:52]} 5. e3 {[%emt 0:00:22]} e6 {[%emt 0:00:12]} 6. cxd5 {[%emt 0:00:15]} cxd5 {[%emt 0:01:19]} 7. Bd3 {[%emt 0:00:23]} Be7 {[%emt 0:02:27]} 8. Nf3 {[%emt 0:01:44]} h6 {[%emt 0:01:37]} 9. Bh4 {[%emt 0:00:22]} b6 {[%emt 0:01:46]} 10. O-O {[%emt 0:00:56]} Bb7 {[%emt 0:00:06]} 11. Rc1 {[%emt 0:03:54]} a6 {[%emt 0:02:55]} 12. h3 {[%emt 0:04:04]} g5 {[%emt 0:00:55]} 13. Bg3 {[%emt 0:00:16]} g4 {[%emt 0:05:30]} 14. hxg4 {[%emt 0:00:32]} Rg8 {[%emt 0:00:30]} 15. Nh2 {[%emt 0:01:38]} h5 {[%emt 0:05:20]} 16. gxh5 {[%emt 0:00:44]} Rh8 {[%emt 0:00:26]} 17. Be2 {[%emt 0:01:37]} Nf8 {[%emt 0:03:09]} 18. Bf4 {[%emt 0:18:38]} Rg8 {[%emt 0:06:05]} 19. Kh1 {[%emt 0:06:43]} Bd6 {[%emt 0:01:09]} 20. Bxd6 {[%emt 0:03:26]} Qxd6 {[%emt 0:00:01]} 21. f4 {[%emt 0:03:08]} N6d7 {[%emt 0:00:51]} 22. g4 {[%emt 0:01:47]} f6 {[%emt 0:00:22]} 23. Bf3 {[%emt 0:02:25]} e5 {[%emt 0:00:16]} 24. dxe5 {[%emt 0:00:28]} fxe5 {[%emt 0:00:49]} 25. Nxd5 {[%emt 0:00:22]} 1-0

[Event "Skalica Open 2019"]
[Site "Skalica"]
[Date "2019.08.31"]
[Round "9.22"]
[White "Palka, Miroslav"]
[Black "Krupnova, Anna"]
[Result "1/2-1/2"]
[ECO "A34"]
[WhiteElo "1869"]
[BlackElo "1712"]
[Annotator "NA"]
[PlyCount "79"]
[EventDate "2019.08.25"]
[EventType "swiss"]
[EventCountry "SVK"]
[SourceTitle "playchess.com"]
[Source "ChessBase"]
[SourceQuality "1"]
[TimeControl "40/5400+30:1800+30"]

1. c4 {[%emt 0:00:00]} c5 {[%emt 0:00:00]} 2. Nc3 {[%emt 0:00:00]} g6 {[%emt 0:00:01]} 3. g3 {[%emt 0:00:04]} Bg7 {[%emt 0:00:22]} 4. Bg2 {[%emt 0:00:06]} d6 {[%emt 0:00:05]} 5. e4 {[%emt 0:00:50]} Nc6 {[%emt 0:00:17]} 6. Nge2 {[%emt 0:00:10]} Nf6 {[%emt 0:00:24]} 7. O-O {[%emt 0:00:10]} O-O {[%emt 0:00:07]} 8. d3 {[%emt 0:00:12]} Ne8 {[%emt 0:00:21]} 9. Be3 {[%emt 0:00:42]} Nd4 {[%emt 0:00:30]} 10. Qd2 {[%emt 0:00:33]} Nc7 {[%emt 0:00:59]} 11. Bh6 {[%emt 0:02:22]} e5 {[%emt 0:06:11]} 12. Bxg7 {[%emt 0:00:11]} Kxg7 {[%emt 0:00:06]} 13. f4 {[%emt 0:00:29]} f6 {[%emt 0:02:13]} 14. fxe5 {[%emt 0:00:55]} dxe5 {[%emt 0:11:29]} 15. Nd5 {[%emt 0:02:53]} Nxe2+ {[%emt 0:05:20]} 16. Qxe2 {[%emt 0:00:15]} Ne6 {[%emt 0:01:15]} 17. Rf2 {[%emt 0:00:52]} Nd4 {[%emt 0:00:44]} 18. Qd2 {[%emt 0:00:37]} Be6 {[%emt 0:02:50]} 19. Raf1 {[%emt 0:00:40]} Bxd5 {[%emt 0:00:15]} 20. cxd5 {[%emt 0:03:08]} Qd6 {[%emt 0:02:36]} 21. Bh3 {[%emt 0:05:08]} a5 {[%emt 0:22:28]} 22. Bg4 {[%emt 0:04:43]} a4 {[%emt 0:05:49]} 23. Bd1 {[%emt 0:08:12]} a3 {[%emt 0:06:38]} 24. b3 {[%emt 0:00:21]} b5 {[%emt 0:06:16]} 25. Qe3 {[%emt 0:04:11]} Rac8 {[%emt 0:06:38]} 26. Be2 {[%emt 0:00:58]} Rc7 {[%emt 0:03:44]} 27. Qc1 {[%emt 0:00:15]} Qa6 {[%emt 0:05:00]} 28. g4 {[%emt 0:04:06]} g5 {[%emt 0:04:14]} 29. Qe3 {[%emt 0:03:18]} Qd6 {[%emt 0:01:36]} 30. h4 {[%emt 0:01:53]} h6 {[%emt 0:00:10]} 31. hxg5 {[%emt 0:01:26]} hxg5 {[%emt 0:00:16]} 32. Rh2 {[%emt 0:03:23]} Rcc8 {[%emt 0:00:22]} 33. Kg2 {[%emt 0:01:41]} Rh8 {[%emt 0:01:09]} 34. Rfh1 {[%emt 0:00:19]} Rxh2+ {[%emt 0:00:44]} 35. Rxh2 {[%emt 0:00:06]} Rh8 {[%emt 0:00:14]} 36. Rxh8 {[%emt 0:00:27]} Kxh8 {[%emt 0:00:08]} 37. Bd1 {[%emt 0:00:14]} Kg7 {[%emt 0:00:57]} 38. Qc1 {[%emt 0:00:26]} b4 {[%emt 0:01:41]} 39. Qe3 {[%emt 0:01:03]} Nb5 {[%emt 0:01:38]} 40. Qf2 1/2-1/2

[Event "Skalica Open 2019"]
[Site "Skalica"]
[Date "2019.08.31"]
[Round "9.23"]
[White "Skreko, Igor"]
[Black "Hrubsa, Marian"]
[Result "1-0"]
[ECO "A36"]
[WhiteElo "1725"]
[BlackElo "1888"]
[Annotator "NA"]
[PlyCount "67"]
[EventDate "2019.08.25"]
[EventType "swiss"]
[EventCountry "SVK"]
[SourceTitle "playchess.com"]
[Source "ChessBase"]
[SourceQuality "1"]
[TimeControl "40/5400+30:1800+30"]

1. c4 {[%emt 0:00:00]} c5 {[%emt 0:00:00]} 2. Nc3 {[%emt 0:00:00]} Nc6 {[%emt 0:00:00]} 3. g3 {[%emt 0:00:00]} g6 {[%emt 0:00:00]} 4. Bg2 {[%emt 0:00:00]} Bg7 {[%emt 0:00:00]} 5. a3 {[%emt 0:00:27]} Nf6 {[%emt 0:00:57]} 6. Rb1 {[%emt 0:01:05]} d6 {[%emt 0:04:08]} 7. b4 {[%emt 0:03:03] A36: Symmetrical English vs ...g6: 4 Bg2 Bg7} (7. d3 a5 8. Bd2 O-O 9. Nh3 e6 10. O-O Bd7 11. Ng5 Ne8 12. Nb5 a4 13. Ne4 Qb8 14. Nec3 Nd4 15. Nxd4 cxd4 {0-1 (39) Bischoff,K (2513)-Granda Zuniga,J (2650) Acqui Terme 2017}) 7... Qc7 {[%emt 0:17:19]} 8. e3 $146 {[%emt 0:14:48]} ({Predecessor:} 8. d3 O-O 9. Bg5 e6 10. Nf3 Nd7 11. Nb5 Qb8 12. Bf4 e5 13. Bd2 a6 14. Nc3 f5 {1-0 (22) Goldstern,F (2372)-Muelli,T (2051) Davos 2002}) 8... O-O {[%emt 0:04:48]} 9. Nge2 {[%emt 0:02:16]} Be6 {[%emt 0:02:03]} 10. d3 {[%emt 0:01:51]} Qd7 {[%emt 0:01:25]} 11. O-O {[%emt 0:05:34]} Rac8 {[%emt 0:01:17]} 12. Qc2 {[%emt 0:01:43]} b6 {[%emt 0:02:01]} (12... Bh3 $11 {keeps the balance.}) 13. Nf4 {[%emt 0:01:20]} Bf5 {[%emt 0:01:42]} 14. e4 {[%emt 0:04:09]} Nd4 {[%emt 0:01:52]} 15. Qd2 {[%emt 0:01:27]} e5 {[%emt 0:05:13]} 16. exf5 {[%emt 0:02:00]} exf4 {[%emt 0:00:38]} 17. Qxf4 {[%emt 0:07:18]} Nh5 {[%emt 0:04:52]} 18. Qd2 {[%emt 0:05:29]} Qxf5 {[%emt 0:03:27]} 19. Qd1 {[%emt 0:06:07]} Nf6 {[%emt 0:04:44]} 20. Be3 {[%emt 0:04:39]} Nd7 {[%emt 0:06:04]} 21. Nd5 {[%emt 0:03:16]} Rfe8 {[%emt 0:02:21]} 22. g4 {[%emt 0:05:09]} Qe6 {[%emt 0:04:11]} 23. Bxd4 {[%emt 0:01:48]} Bxd4 {[%emt 0:01:39]} 24. Re1 {[%emt 0:00:17]} Ne5 {[%emt 0:00:26]} 25. h3 {[%emt 0:01:45]} Kg7 {[%emt 0:02:34]} 26. Qd2 {[%emt 0:04:06]} Qd7 {[%emt 0:01:54]} 27. Re2 {[%emt 0:01:17]} Qa4 {[%emt 0:02:29]} 28. Rbe1 {[%emt 0:03:27]} Qxa3 {[%emt 0:02:27]} 29. Qg5 {[%emt 0:01:03]} Bxf2+ {[%emt 0:13:14]} 30. Kxf2 {[%emt 0:08:33]} ({Not} 30. Rxf2 Nf3+ 31. Bxf3 Rxe1+ 32. Kh2 Qa1 $16) 30... Nxd3+ {[%emt 0:13:26]} 31. Kg1 {[%emt 0:00:24]} Rxe2 {[%emt 0:01:19]} 32. Qf6+ {[%emt 0:03:12] Double Attack} ({Weaker is} 32. Rxe2 Qc1+ 33. Qxc1 Nxc1 $16) 32... Kg8 {[%emt 0:01:02]} 33. Rxe2 {[%emt 0:00:17]} Qc1+ {[%emt 0:00:35]} 34. Kh2 {[%emt 0:00:27]} 1-0